fUST/lending_fUST_20250601
["ID","MTS","AMOUNT","RATE_DAILY","PERIOD"]
[363575054,1748773840932,-430.0,0.00016438,2]
[363575056,1748773840943,-430.0,0.00016438,2]
[363575058,1748773840952,-430.0,0.00016438,2]
[363575060,1748773840962,-430.0,0.00016438,2]
[363575062,1748773840971,-430.0,0.00016438,2]
[363575064,1748773840982,-430.0,0.00016438,2]
[363575066,1748773840991,-390.0,0.00016438,2]
[363575068,1748773841001,-478.46,0.00016438,2]
[363575070,1748773841011,-710.44,0.00016438,2]
[363575073,1748773841021,-430.0,0.00016438,2]
[363575074,1748773841031,-430.0,0.00016438,2]
[363575076,1748773841041,-442.82,0.00016438,2]
[363575078,1748773841051,-430.0,0.00016438,2]
[363575081,1748773841061,-430.0,0.00016438,2]
[363575083,1748773841071,-430.0,0.00016438,2]
[363575085,1748773841081,-430.0,0.00016438,2]
[363575087,1748773841091,-875.79,0.00016438,2]
[363575089,1748773841100,-430.0,0.00016438,2]
[363575090,1748773841109,-430.0,0.00016438,2]
[363575093,1748773841120,-430.0,0.00016438,2]
[363575095,1748773841130,-430.0,0.00016438,2]
[363575097,1748773841139,-430.0,0.00016438,2]
[363575099,1748773841150,-411.42155834,0.00016438,2]
[363575101,1748773841159,-430.0,0.00016438,2]
[363575103,1748773841169,-430.0,0.00016438,2]
[363575105,1748773841178,-430.0,0.00016438,2]
[363575106,1748773841187,-157.0,0.00016438,3]
[363575108,1748773841197,-159.53536824,0.00016612,2]
[363575110,1748773841207,-430.0,0.00016712,2]
[363575112,1748773841216,-270.44880327,0.00016712,2]
[363575114,1748773841225,-430.0,0.00016712,2]
[363575116,1748773841235,-430.0,0.00016712,2]
[363575118,1748773841246,-430.0,0.00016712,2]
[363575120,1748773841255,-380.01990623,0.00016712,2]
[363575122,1748773841265,-430.0,0.00016712,2]
[363575124,1748773841275,-430.0,0.00016712,2]
[363575126,1748773841285,-430.0,0.00016712,2]
[363575128,1748773841294,-430.0,0.00016712,2]
[363575130,1748773841304,-430.0,0.00016712,2]
[363575132,1748773841314,-430.0,0.00016712,2]
[363575134,1748773841328,-430.0,0.00016712,2]
[363575137,1748773841342,-430.0,0.00016712,2]
[363575139,1748773841352,-430.0,0.00016712,2]
[363575141,1748773841362,-430.88753022,0.00016712,2]
[363575143,1748773841372,-430.0,0.00016712,2]
[363575145,1748773841382,-430.0,0.00016712,2]
[363575147,1748773841392,-430.0,0.00016712,2]
[363575149,1748773841404,-430.0,0.00016712,2]
[363575151,1748773841414,-430.0,0.00016712,2]
[363575153,1748773841424,-430.0,0.00016712,2]
[363575155,1748773841434,-430.0,0.00016712,2]
[363575157,1748773841444,-430.0,0.00016712,2]
[363575159,1748773841453,-470.0,0.00016712,2]
[363575161,1748773841462,-436.97446327,0.00016712,2]
[363575163,1748773841472,-430.0,0.00016712,2]
[363575165,1748773841482,-430.0,0.00016712,2]
[363575167,1748773841493,-430.0,0.00016712,2]
[363575169,1748773841502,-430.0,0.00016712,2]
[363575171,1748773841512,-430.0,0.00016712,2]
[363575173,1748773841522,-430.0,0.00016712,2]
[363575175,1748773841532,-430.0,0.00016712,2]
[363575177,1748773841542,-437.15110351,0.00016712,2]
[363575178,1748773841551,-430.0,0.00016712,2]
[363575180,1748773841561,-425.21830925,0.00016712,2]
[363575183,1748773841571,-430.0,0.00016712,2]
[363575184,1748773841581,-430.0,0.00016712,2]
[363575186,1748773841592,-430.0,0.00016712,2]
[363575188,1748773841602,-430.0,0.00016712,2]
[363575191,1748773841612,-195.44,0.00016712,2]
[363575192,1748773841622,-433.96152516,0.00016712,2]
[363575195,1748773841632,-430.0,0.00016712,2]
[363575197,1748773841642,-198.55791851,0.00016712,2]
[363575198,1748773841652,-430.0,0.00016712,2]
[363575200,1748773841668,-430.0,0.00016712,2]
[363575202,1748773841680,-430.0,0.00016712,2]
[363575204,1748773841690,-430.0,0.00016712,2]
[363575207,1748773841700,-430.0,0.00016712,2]
[363575209,1748773841714,-430.0,0.00016712,2]
[363575211,1748773841724,-430.0,0.00016712,2]
[363575213,1748773841733,-430.0,0.00016712,2]
[363575215,1748773841743,-430.0,0.00016712,2]
[363575217,1748773841754,-430.0,0.00016712,2]
[363575219,1748773841764,-430.0,0.00016712,2]
[363575221,1748773841774,-693.33,0.00016712,2]
[363575224,1748773841791,-531.75,0.00016712,2]
[363575226,1748773841805,-430.0,0.00016712,2]
[363575229,1748773841818,-430.0,0.00016712,2]
[363575231,1748773841831,-430.0,0.00016712,2]
[363575234,1748773841845,-430.0,0.00016712,2]
[363575236,1748773841858,-350.0,0.00016712,2]
[363575238,1748773841870,-430.0,0.00016712,2]
[363575240,1748773841880,-440.27,0.00016712,2]
[363575242,1748773841892,-430.0,0.00016712,2]
[363575245,1748773841905,-430.0,0.00016712,2]
[363575247,1748773841916,-430.0,0.00016712,2]
[363575249,1748773841928,-595.14,0.00016712,2]
[363575251,1748773841940,-430.0,0.00016712,2]
[363575254,1748773841952,-430.0,0.00016712,2]
[363575256,1748773841964,-430.0,0.00016712,2]
[363575258,1748773841977,-430.0,0.00016712,2]
[363575260,1748773841989,-1033.78,0.00016712,2]
[363575263,1748773842002,-430.0,0.00016712,2]
[363575265,1748773842015,-430.0,0.00016712,2]
[363575267,1748773842028,-478.94093369,0.00016712,2]
[363575269,1748773842040,-430.0,0.00016712,2]
[363575272,1748773842053,-430.0,0.00016712,2]
[363575274,1748773842065,-430.0,0.00016712,2]
[363575276,1748773842075,-430.0,0.00016712,2]
[363575279,1748773842089,-430.0,0.00016712,2]
[363575281,1748773842103,-430.0,0.00016712,2]
[363575283,1748773842114,-430.0,0.00016712,2]
[363575285,1748773842126,-430.0,0.00016712,2]
[363575288,1748773842137,-400.0,0.00016712,2]
[363575290,1748773842149,-430.0,0.00016712,2]
[363575292,1748773842161,-430.0,0.00016712,2]
[363575295,1748773842173,-430.0,0.00016712,2]
[363575297,1748773842184,-430.0,0.00016712,2]
[363575299,1748773842195,-430.0,0.00016712,2]
[363575301,1748773842207,-265.08175579,0.00016712,2]
[363575303,1748773842217,-430.0,0.00016712,2]
[363575305,1748773842228,-628.21,0.00016712,2]
[363575307,1748773842238,-430.0,0.00016712,2]
[363575309,1748773842250,-430.0,0.00016712,2]
[363575312,1748773842263,-430.0,0.00016712,2]
[363575314,1748773842273,-478.46,0.00016712,2]
[363575315,1748773842286,-710.44,0.00016712,2]
[363575316,1748773842298,-430.0,0.00016712,2]
[363575318,1748773842311,-442.82,0.00016712,2]
[363575320,1748773842325,-430.0,0.00016712,2]
[363575322,1748773842337,-430.0,0.00016712,2]
[363575324,1748773842349,-875.79,0.00016712,2]
[363575326,1748773842360,-430.0,0.00016712,2]
[363575329,1748773842373,-430.0,0.00016712,2]
[363575332,1748773842386,-430.0,0.00016712,2]
[363575334,1748773842398,-601.00497472,0.000169,2]
[363575336,1748773842412,-492.95,0.00016986,2]
[363575337,1748773842425,-282.23150538,0.00016986,2]
[363575338,1748773842437,-430.0,0.00016986,2]
[363575340,1748773842447,-430.0,0.00016986,2]
[363575342,1748773842457,-430.0,0.00016986,2]
[363575343,1748773842469,-430.0,0.00016986,2]
[363575344,1748773842479,-430.0,0.00016986,2]
[363575345,1748773842490,-430.0,0.00016986,2]
[363575346,1748773842501,-430.0,0.00016986,2]
[363575348,1748773842512,-430.0,0.00016986,2]
[363575349,1748773842525,-430.0,0.00016986,2]
[363575350,1748773842536,-430.0,0.00016986,2]
[363575351,1748773842549,-430.0,0.00016986,2]
[363575352,1748773842560,-456.17,0.00016986,2]
[363575353,1748773842572,-430.0,0.00016986,2]
[363575354,1748773842583,-430.0,0.00016986,2]
[363575355,1748773842593,-430.0,0.00016986,2]
[363575356,1748773842603,-356.49,0.00016986,2]
[363575357,1748773842614,-430.0,0.00016986,2]
[363575358,1748773842625,-693.33,0.00016986,2]
[363575359,1748773842636,-531.75,0.00016986,2]
[363575360,1748773842648,-578.10679984,0.00016986,2]
[363575362,1748773842659,-430.0,0.00016986,2]
[363575364,1748773842670,-440.27,0.00016986,2]
[363575366,1748773842681,-430.0,0.00016986,2]
[363575368,1748773842691,-430.0,0.00016986,2]
[363575370,1748773842702,-302.26828676,0.00016986,2]
[363575372,1748773842713,-595.14,0.00016986,2]
[363575374,1748773842724,-430.0,0.00016986,2]
[363575376,1748773842735,-430.0,0.00016986,2]
[363575378,1748773842746,-1033.78,0.00016986,2]
[363575380,1748773842756,-430.0,0.00016986,2]
[363575382,1748773842768,-430.0,0.00016986,2]
[363575384,1748773842779,-430.0,0.00016986,2]
[363575386,1748773842790,-430.0,0.00016986,2]
[363575389,1748773842801,-430.0,0.00016986,2]
[363575391,1748773842813,-430.0,0.00016986,2]
[363575393,1748773842823,-430.0,0.00016986,2]
[363575395,1748773842835,-430.0,0.00016986,2]
[363575397,1748773842847,-453.31,0.00016986,2]
[363575399,1748773842859,-430.0,0.00016986,2]
[363575401,1748773842870,-628.21,0.00016986,2]
[363575404,1748773842882,-430.0,0.00016986,2]
[363575406,1748773842893,-430.0,0.00016986,2]
[363575407,1748773842905,-430.0,0.00016986,2]
[363575410,1748773842918,-478.46,0.00016986,2]
[363575412,1748773842931,-710.44,0.00016986,2]
[363575414,1748773842943,-183.15,0.00016986,2]
[363575416,1748773842954,-442.82,0.00016986,2]
[363575418,1748773842965,-875.79,0.00016986,2]
[363575420,1748773842975,-430.0,0.00016986,2]
[363575422,1748773842986,-430.0,0.00016986,2]
[363575424,1748773842996,-430.0,0.00016986,2]
[363575426,1748773843009,-601.00497466,0.00017141,2]
[363575428,1748773843019,-273.50460979,0.00017157,2]
[363575431,1748773843031,-430.0,0.0001726,2]
[363575433,1748773843040,-441.56699266,0.0001726,2]
[363575435,1748773843051,-430.0,0.0001726,2]
[363575437,1748773843063,-430.0,0.0001726,2]
[363575439,1748773843074,-430.0,0.0001726,2]
[363575441,1748773843085,-430.0,0.0001726,2]
[363575443,1748773843095,-430.0,0.0001726,2]
[363575446,1748773843106,-693.33,0.0001726,2]
[363575449,1748773843117,-531.75,0.0001726,2]
[363575452,1748773843129,-430.0,0.0001726,2]
[363575453,1748773843139,-440.27,0.0001726,2]
[363575454,1748773843150,-191.86,0.0001726,2]
[363575455,1748773843160,-595.14,0.0001726,2]
[363575456,1748773843171,-430.0,0.0001726,2]
[363575457,1748773843181,-430.0,0.0001726,2]
[363575459,1748773843192,-1033.78,0.0001726,2]
[363575461,1748773843203,-430.0,0.0001726,2]
[363575463,1748773843213,-430.0,0.0001726,2]
[363575466,1748773843225,-430.0,0.0001726,2]
[363575468,1748773843237,-430.0,0.0001726,2]
[363575470,1748773843247,-430.0,0.0001726,2]
[363575472,1748773843258,-430.0,0.0001726,2]
[363575474,1748773843269,-430.0,0.0001726,2]
[363575476,1748773843280,-430.0,0.0001726,2]
[363575479,1748773843291,-628.21,0.0001726,2]
[363575481,1748773843302,-430.0,0.0001726,2]
[363575483,1748773843313,-430.0,0.0001726,2]
[363575485,1748773843327,-430.0,0.0001726,2]
[363575487,1748773843338,-478.46,0.0001726,2]
[363575489,1748773843349,-710.44,0.0001726,2]
[363575491,1748773843360,-442.82,0.0001726,2]
[363575493,1748773843371,-875.79,0.0001726,2]
[363575495,1748773843382,-430.0,0.0001726,2]
[363575498,1748773843394,-430.0,0.0001726,2]
[363575500,1748773843406,-430.0,0.0001726,2]
[363575502,1748773843416,-601.00497466,0.00017383,2]
[363575504,1748773843427,-160.0,0.00017408,2]
[363575506,1748773843438,-229.3709046,0.00017409,2]
[363575508,1748773843449,-423.51412927,0.00017409,2]
[363575510,1748773843460,-160.0,0.00017409,2]
[363575512,1748773843471,-160.0,0.00017409,2]
[363575514,1748773843482,-842.5625,0.00017409,2]
[363575516,1748773843493,-160.0,0.00017409,2]
[363575519,1748773843504,-160.0,0.00017409,2]
[363575521,1748773843516,-212.80060342,0.00017409,2]
[363575523,1748773843527,-160.0,0.00017409,2]
[363575543,1748773843713,-430.0,0.00017534,2]
[363575546,1748773843726,-430.0,0.00017534,2]
[363575548,1748773843736,-693.33,0.00017534,2]
[363575550,1748773843749,-531.75,0.00017534,2]
[363575552,1748773843759,-430.0,0.00017534,2]
[363575553,1748773843768,-440.27,0.00017534,2]
[363575554,1748773843778,-595.14,0.00017534,2]
[363575555,1748773843788,-406.15,0.00017534,2]
[363575556,1748773843798,-430.0,0.00017534,2]
[363575557,1748773843807,-1033.78,0.00017534,2]
[363575558,1748773843817,-430.0,0.00017534,2]
[363575559,1748773843827,-430.0,0.00017534,2]
[363575560,1748773843837,-430.0,0.00017534,2]
[363575561,1748773843847,-430.0,0.00017534,2]
[363575562,1748773843856,-430.0,0.00017534,2]
[363575563,1748773843867,-430.0,0.00017534,2]
[363575564,1748773843877,-430.0,0.00017534,2]
[363575565,1748773843886,-628.21,0.00017534,2]
[363575566,1748773843896,-526.01020743,0.00017534,2]
[363575567,1748773843907,-318.3,0.00017534,2]
[363575568,1748773843916,-488.83,0.00017534,2]
[363575569,1748773843927,-478.46,0.00017534,2]
[363575570,1748773843937,-710.44,0.00017534,2]
[363575571,1748773843947,-442.82,0.00017534,2]
[363575572,1748773843957,-875.79,0.00017534,2]
[363575573,1748773843968,-430.0,0.00017534,2]
[363575574,1748773843978,-430.0,0.00017534,2]
[363575575,1748773843987,-156.24936685,0.00017578,2]
[363575576,1748773843996,-601.00497466,0.00017624,2]
[363575578,1748773844006,-430.0,0.00017808,2]
[363575580,1748773844016,-693.33,0.00017808,2]
[363575582,1748773844026,-531.75,0.00017808,2]
[363575584,1748773844035,-430.0,0.00017808,2]
[363575586,1748773844044,-440.27,0.00017808,2]
[363575588,1748773844054,-595.14,0.00017808,2]
[363575590,1748773844063,-430.0,0.00017808,2]
[363575592,1748773844072,-1033.78,0.00017808,2]
[363575593,1748773844082,-430.0,0.00017808,2]
[363575595,1748773844091,-430.0,0.00017808,2]
[363575597,1748773844101,-353.89,0.00017808,2]
[363575599,1748773844110,-430.0,0.00017808,2]
[363575601,1748773844120,-220.44999794,0.00017808,2]
[363575603,1748773844129,-430.0,0.00017808,2]
[363575605,1748773844139,-430.0,0.00017808,2]
[363575607,1748773844148,-628.21,0.00017808,2]
[363575609,1748773844158,-478.46,0.00017808,2]
[363575611,1748773844168,-710.44,0.00017808,2]
[363575613,1748773844178,-442.82,0.00017808,2]
[363575615,1748773844189,-875.79,0.00017808,2]
[363575617,1748773844199,-430.0,0.00017808,2]
[363575619,1748773844208,-430.0,0.00017808,2]
[363575621,1748773844218,-601.00497466,0.00017866,2]
[363575623,1748773844227,-430.0,0.00018082,2]
[363575625,1748773844236,-693.33,0.00018082,2]
[363575627,1748773844246,-531.75,0.00018082,2]
[363575629,1748773844256,-430.0,0.00018082,2]
[363575631,1748773844265,-440.27,0.00018082,2]
[363575633,1748773844274,-595.14,0.00018082,2]
[363575635,1748773844283,-430.0,0.00018082,2]
[363575637,1748773844294,-1033.78,0.00018082,2]
[363575639,1748773844303,-430.0,0.00018082,2]
[363575641,1748773844313,-430.0,0.00018082,2]
[363575642,1748773844325,-430.0,0.00018082,2]
[363575644,1748773844334,-430.0,0.00018082,2]
[363575646,1748773844344,-430.0,0.00018082,2]
[363575648,1748773844354,-628.21,0.00018082,2]
[363575650,1748773844364,-478.46,0.00018082,2]
[363575652,1748773844373,-710.44,0.00018082,2]
[363575653,1748773844384,-442.82,0.00018082,2]
[363575655,1748773844393,-875.79,0.00018082,2]
[363575657,1748773844405,-430.0,0.00018082,2]
[363575659,1748773844415,-430.0,0.00018082,2]
[363575661,1748773844425,-601.00497466,0.00018107,2]
[363575662,1748773844435,-601.00497466,0.00018348,2]
[363575663,1748773844445,-430.0,0.00018356,2]
[363575664,1748773844454,-693.33,0.00018356,2]
[363575665,1748773844463,-531.75,0.00018356,2]
[363575666,1748773844473,-430.0,0.00018356,2]
[363575667,1748773844483,-440.27,0.00018356,2]
[363575668,1748773844492,-595.14,0.00018356,2]
[363575669,1748773844503,-430.0,0.00018356,2]
[363575670,1748773844512,-1033.78,0.00018356,2]
[363575671,1748773844523,-430.0,0.00018356,2]
[363575672,1748773844533,-430.0,0.00018356,2]
[363575673,1748773844543,-430.0,0.00018356,2]
[363575674,1748773844552,-430.0,0.00018356,2]
[363575675,1748773844562,-430.0,0.00018356,2]
[363575676,1748773844571,-628.21,0.00018356,2]
[363575677,1748773844581,-478.46,0.00018356,2]
[363575678,1748773844591,-710.44,0.00018356,2]
[363575679,1748773844601,-442.82,0.00018356,2]
[363575680,1748773844611,-875.79,0.00018356,2]
[363575681,1748773844620,-430.0,0.00018356,2]
[363575682,1748773844630,-430.0,0.00018356,2]
[363575683,1748773844640,-510.78,0.00018521,2]
[363575684,1748773844650,-601.00497466,0.0001859,2]
[363575685,1748773844660,-693.33,0.0001863,2]
[363575686,1748773844669,-531.75,0.0001863,2]
[363575687,1748773844680,-430.0,0.0001863,2]
[363575688,1748773844690,-440.27,0.0001863,2]
[363575689,1748773844700,-595.14,0.0001863,2]
[363575690,1748773844710,-430.0,0.0001863,2]
[363575691,1748773844720,-1033.78,0.0001863,2]
[363575692,1748773844730,-430.0,0.0001863,2]
[363575693,1748773844741,-430.0,0.0001863,2]
[363575694,1748773844751,-430.0,0.0001863,2]
[363575695,1748773844760,-430.0,0.0001863,2]
[363575696,1748773844770,-430.0,0.0001863,2]
[363575697,1748773844779,-628.21,0.0001863,2]
[363575698,1748773844789,-478.46,0.0001863,2]
[363575699,1748773844798,-710.44,0.0001863,2]
[363575700,1748773844808,-442.82,0.0001863,2]
[363575701,1748773844818,-875.79,0.0001863,2]
[363575702,1748773844828,-430.0,0.0001863,2]
[363575703,1748773844838,-430.0,0.0001863,2]
[363575704,1748773844852,-156.24936685,0.00018818,2]
[363575705,1748773844873,-601.00497466,0.00018831,2]
[363575706,1748773844896,-1471.1353111,0.000189,2]
[363575708,1748773844920,-693.33,0.00018904,2]
[363575709,1748773844946,-531.75,0.00018904,2]
[363575710,1748773844970,-430.0,0.00018904,2]
[363575711,1748773844995,-440.27,0.00018904,2]
[363575712,1748773845018,-595.14,0.00018904,2]
[363575713,1748773845050,-430.0,0.00018904,2]
[363575714,1748773845061,-1033.78,0.00018904,2]
[363575715,1748773845071,-237.17,0.00018904,2]
[363575716,1748773845081,-430.0,0.00018904,2]
[363575717,1748773845091,-559.2,0.00018904,2]
[363575718,1748773845101,-292.14562744,0.00018904,2]
[363575719,1748773845111,-264.1,0.00018904,2]
[363575720,1748773845121,-628.21,0.00018904,2]
[363575721,1748773845130,-478.46,0.00018904,2]
[363575722,1748773845140,-710.44,0.00018904,2]
[363575723,1748773845149,-442.82,0.00018904,2]
[363575724,1748773845159,-875.79,0.00018904,2]
[363575725,1748773845168,-430.0,0.00018904,2]
[363575726,1748773845178,-430.0,0.00018904,2]
[363575727,1748773845188,-601.00497466,0.00019072,2]
[363575728,1748773845198,-693.33,0.00019178,2]
[363575729,1748773845208,-531.75,0.00019178,2]
[363575730,1748773845218,-430.0,0.00019178,2]
[363575731,1748773845228,-440.27,0.00019178,2]
[363575732,1748773845239,-595.14,0.00019178,2]
[363575733,1748773845249,-248.11333701,0.00019178,2]
[363575734,1748773845260,-1033.78,0.00019178,2]
[363575735,1748773845270,-430.0,0.00019178,2]
[363575736,1748773845280,-628.21,0.00019178,2]
[363575737,1748773845290,-478.46,0.00019178,2]
[363575739,1748773845300,-710.44,0.00019178,2]
[363575741,1748773845309,-442.82,0.00019178,2]
[363575742,1748773845320,-430.0,0.00019178,2]
[363575745,1748773845332,-875.79,0.00019178,2]
[363575747,1748773845342,-430.0,0.00019178,2]
[363575749,1748773845353,-430.0,0.00019178,2]
[363575753,1748773845364,-169.640818,0.00019178,2]
[363575755,1748773845375,-601.00497466,0.00019314,2]
[363575756,1748773845388,-1021.56,0.00019402,2]
[363575758,1748773845398,-693.33,0.00019452,2]
[363575760,1748773845410,-531.75,0.00019452,2]
[363575762,1748773845420,-430.0,0.00019452,2]
[363575764,1748773845430,-440.27,0.00019452,2]
[363575766,1748773845439,-595.14,0.00019452,2]
[363575768,1748773845450,-1033.78,0.00019452,2]
[363575770,1748773845459,-430.0,0.00019452,2]
[363575771,1748773845468,-628.21,0.00019452,2]
[363575773,1748773845478,-478.46,0.00019452,2]
[363575774,1748773845488,-710.44,0.00019452,2]
[363575775,1748773845499,-442.82,0.00019452,2]
[363575776,1748773845509,-875.79,0.00019452,2]
[363575777,1748773845519,-430.0,0.00019452,2]
[363575778,1748773845529,-430.0,0.00019452,2]
[363575779,1748773845540,-601.00497466,0.00019555,2]
[363575780,1748773845550,-355.749,0.00019576,2]
[363575781,1748773845559,-207.4,0.00019638,2]
[363575782,1748773845570,-207.10190885,0.00019638,2]
[363575783,1748773845582,-685.7032073,0.0001966,2]
[363575784,1748773845592,-693.33,0.00019726,2]
[363575785,1748773845602,-531.75,0.00019726,2]
[363575786,1748773845612,-479.15,0.00019726,2]
[363575787,1748773845623,-440.27,0.00019726,2]
[363575788,1748773845633,-595.14,0.00019726,2]
[363575789,1748773845644,-1033.78,0.00019726,2]
[363575790,1748773845654,-430.0,0.00019726,2]
[363575791,1748773845665,-628.21,0.00019726,2]
[363575792,1748773845675,-478.46,0.00019726,2]
[363575793,1748773845686,-710.44,0.00019726,2]
[363575794,1748773845697,-442.82,0.00019726,2]
[363575795,1748773845707,-875.79,0.00019726,2]
[363575796,1748773845719,-430.0,0.00019726,2]
[363575797,1748773845730,-430.0,0.00019726,2]
[363575798,1748773845741,-601.00497466,0.00019797,2]
[363575799,1748773845756,-591.626,0.00019804,2]
[363575800,1748773845768,-405.0,0.00019804,2]
[363575801,1748773845779,-327.91,0.000199,2]
[363575802,1748773845790,-500.0,0.00019954,2]
[363575803,1748773845801,-693.33,0.0002,2]
[363575804,1748773845812,-531.75,0.0002,2]
[363575805,1748773845823,-440.27,0.0002,2]
[363575806,1748773845833,-595.14,0.0002,2]
[363575807,1748773845843,-1033.78,0.0002,2]
[363575808,1748773845853,-430.0,0.0002,2]
[363575809,1748773845863,-628.21,0.0002,2]
[363575810,1748773845874,-478.46,0.0002,2]
[363575811,1748773845884,-710.44,0.0002,2]
[363575812,1748773845893,-442.82,0.0002,2]
[363575813,1748773845903,-875.79,0.0002,2]
[363575814,1748773845912,-430.0,0.0002,2]
[363575815,1748773845921,-430.0,0.0002,2]
[363575816,1748773845932,-601.00497466,0.00020038,2]
[363575817,1748773845942,-156.24936685,0.00020058,2]
[363575818,1748773845952,-549.469796,0.00020187,2]
[363575819,1748773845961,-693.33,0.00020273,2]
[363575820,1748773845971,-531.75,0.00020273,2]
[363575821,1748773845982,-440.27,0.00020273,2]
[363575822,1748773845993,-595.14,0.00020273,2]
[363575823,1748773846006,-1033.78,0.00020273,2]
[363575824,1748773846016,-430.0,0.00020273,2]
[363575825,1748773846025,-628.21,0.00020273,2]
[363575826,1748773846035,-478.46,0.00020273,2]
[363575827,1748773846045,-710.44,0.00020273,2]
[363575828,1748773846055,-442.82,0.00020273,2]
[363575829,1748773846065,-875.79,0.00020273,2]
[363575830,1748773846075,-430.0,0.00020273,2]
[363575832,1748773846085,-430.0,0.00020273,2]
[363575834,1748773846097,-601.00497466,0.00020279,3]
[363575836,1748773846107,-1532.34,0.00020284,2]
[363575838,1748773846118,-601.00497466,0.00020521,3]
[363575840,1748773846127,-693.33,0.00020547,2]
[363575841,1748773846137,-531.75,0.00020547,2]
[363575843,1748773846147,-440.27,0.00020547,2]
[363575845,1748773846156,-595.14,0.00020547,2]
[363575847,1748773846166,-1033.78,0.00020547,2]
[363575849,1748773846176,-430.0,0.00020547,2]
[363575851,1748773846186,-628.21,0.00020547,2]
[363575853,1748773846197,-478.46,0.00020547,2]
[363575855,1748773846207,-710.44,0.00020547,2]
[363575857,1748773846217,-442.82,0.00020547,2]
[363575859,1748773846226,-875.79,0.00020547,2]
[363575861,1748773846235,-430.0,0.00020547,2]
[363575863,1748773846245,-210.75496981,0.00020547,2]
[363575865,1748773846257,-408.15,0.000206,2]
[363575867,1748773846267,-3683.53,0.000206,2]
[363575870,1748773846276,-617.13,0.000206,2]
[363575872,1748773846286,-601.00497466,0.00020762,3]
[363575874,1748773846295,-693.33,0.00020821,2]
[363575876,1748773846306,-531.75,0.00020821,2]
[363575879,1748773846327,-440.27,0.00020821,2]
[363575881,1748773846338,-595.14,0.00020821,2]
[363575882,1748773846348,-1033.78,0.00020821,2]
[363575883,1748773846363,-430.0,0.00020821,2]
[363575884,1748773846373,-628.21,0.00020821,2]
[363575885,1748773846383,-710.44,0.00020821,2]
[363575886,1748773846393,-478.46,0.00020821,2]
[363575887,1748773846405,-442.82,0.00020821,2]
[363575888,1748773846416,-875.79,0.00020821,2]
[363575889,1748773846425,-430.0,0.00020821,2]
[363575890,1748773846435,-233.55678237,0.00021,2]
[363575891,1748773846445,-601.00497466,0.00021003,4]
[363575892,1748773846455,-215.0738,0.00021007,2]
[363575893,1748773846465,-693.33,0.00021095,2]
[363575894,1748773846475,-531.75,0.00021095,2]
[363575895,1748773846485,-440.27,0.00021095,2]
[363575896,1748773846495,-595.14,0.00021095,2]
[363575897,1748773846507,-1033.78,0.00021095,2]